fUST/lending_fUST_20240912
["ID","MTS","AMOUNT","RATE_DAILY","PERIOD"]
[337827662,1726139446988,-500.0,0.00016438,2]
[337827663,1726139447000,-500.0,0.00016438,2]
[337827664,1726139447010,-500.0,0.00016438,2]
[337827665,1726139447020,-500.0,0.00016438,2]
[337827666,1726139447030,-500.0,0.00016438,2]
[337827667,1726139447040,-500.0,0.00016438,2]
[337827668,1726139447049,-528.47076843,0.00016438,2]
[337827669,1726139447058,-500.0,0.00016438,2]
[337827670,1726139447067,-500.0,0.00016438,2]
[337827671,1726139447077,-500.0,0.00016438,2]
[337827672,1726139447086,-613.32,0.00016438,2]
[337827673,1726139447097,-500.0,0.00016438,2]
[337827674,1726139447107,-776.23,0.00016438,2]
[337827675,1726139447117,-500.0,0.00016438,2]
[337827676,1726139447127,-501.07736887,0.00016438,2]
[337827677,1726139447138,-500.0,0.00016438,2]
[337827678,1726139447149,-500.0,0.00016438,2]
[337827679,1726139447159,-500.0,0.00016438,2]
[337827680,1726139447170,-502.25341862,0.00016438,2]
[337827681,1726139447180,-500.0,0.00016438,2]
[337827682,1726139447190,-381.98611508,0.00016438,2]
[337827683,1726139447200,-500.0,0.00016438,2]
[337827684,1726139447210,-500.0,0.00016438,2]
[337827685,1726139447222,-500.0,0.00016438,2]
[337827686,1726139447234,-500.0,0.00016438,2]
[337827687,1726139447244,-500.0,0.00016438,2]
[337827688,1726139447255,-500.0,0.00016438,2]
[337827689,1726139447264,-500.0,0.00016438,2]
[337827690,1726139447274,-500.0,0.00016438,2]
[337827691,1726139447283,-500.0,0.00016438,2]
[337827692,1726139447293,-500.0,0.00016438,2]
[337827693,1726139447303,-7408.72,0.00016438,2]
[337827694,1726139447312,-500.0,0.00016438,2]
[337827695,1726139447321,-500.0,0.00016438,2]
[337827696,1726139447331,-500.0,0.00016438,2]
[337827697,1726139447340,-500.0,0.00016438,2]
[337827698,1726139447349,-500.0,0.00016438,2]
[337827699,1726139447359,-500.0,0.00016438,2]
[337827700,1726139447368,-500.0,0.00016438,2]
[337827701,1726139447377,-500.0,0.00016438,2]
[337827702,1726139447386,-503.72,0.00016438,2]
[337827703,1726139447396,-635.62,0.00016438,2]
[337827704,1726139447406,-884.38,0.00016438,2]
[337827705,1726139447416,-500.0,0.00016438,2]
[337827706,1726139447426,-500.0,0.00016438,2]
[337827707,1726139447436,-500.0,0.00016438,2]
[337827708,1726139447446,-500.0,0.00016438,2]
[337827709,1726139447456,-500.0,0.00016438,2]
[337827710,1726139447465,-598.42616293,0.00016438,2]
[337827711,1726139447475,-500.0,0.00016438,2]
[337827712,1726139447484,-180.82810532,0.00016438,2]
[337827713,1726139447493,-500.0,0.00016438,2]
[337827714,1726139447503,-500.0,0.00016438,2]
[337827715,1726139447513,-567.05,0.00016438,2]
[337827716,1726139447522,-500.0,0.00016438,2]
[337827717,1726139447531,-500.0,0.00016438,2]
[337827718,1726139447541,-500.0,0.00016438,2]
[337827719,1726139447550,-500.0,0.00016438,2]
[337827720,1726139447559,-500.82846974,0.00016438,2]
[337827721,1726139447569,-500.0,0.00016438,2]
[337827722,1726139447578,-500.0,0.00016438,2]
[337827723,1726139447588,-500.0,0.00016438,2]
[337827724,1726139447599,-500.0,0.00016438,2]
[337827725,1726139447610,-923.9,0.00016438,2]
[337827726,1726139447621,-507.94989365,0.00016438,2]
[337827727,1726139447764,-500.0,0.00016438,2]
[337827728,1726139447774,-500.0,0.00016438,2]
[337827729,1726139447783,-588.43,0.00016438,2]
[337827730,1726139447793,-500.0,0.00016438,2]
[337827731,1726139447803,-1069.68,0.00016438,2]
[337827732,1726139447814,-500.0,0.00016438,2]
[337827733,1726139447825,-500.0,0.00016438,2]
[337827734,1726139447835,-500.0,0.00016438,2]
[337827735,1726139447847,-500.0,0.00016438,2]
[337827736,1726139447857,-500.0,0.00016438,2]
[337827737,1726139447868,-500.0,0.00016438,2]
[337827738,1726139447879,-726.47,0.00016438,2]
[337827739,1726139447888,-500.0,0.00016438,2]
[337827740,1726139447898,-508.17777301,0.00016438,2]
[337827741,1726139447908,-500.0,0.00016438,2]
[337827742,1726139447916,-500.0,0.00016438,2]
[337827743,1726139447928,-856.3,0.00016438,2]
[337827744,1726139447939,-500.0,0.00016438,2]
[337827745,1726139447950,-500.0,0.00016438,2]
[337827746,1726139447961,-527.84608972,0.00016438,2]
[337827747,1726139447972,-500.0,0.00016438,2]
[337827748,1726139447983,-437.52054145,0.00016438,2]
[337827749,1726139447994,-262.60745084,0.00016438,2]
[337827750,1726139448005,-620.88,0.00016438,2]
[337827751,1726139448015,-500.0,0.00016438,2]
[337827752,1726139448026,-936.04,0.00016438,2]
[337827753,1726139448036,-500.0,0.00016438,2]
[337827754,1726139448045,-500.0,0.00016438,2]
[337827755,1726139448054,-587.87,0.00016438,2]
[337827756,1726139448064,-500.0,0.00016438,2]
[337827757,1726139448073,-500.0,0.00016438,2]
[337827758,1726139448084,-500.0,0.00016438,2]
[337827759,1726139448095,-500.0,0.00016438,2]
[337827760,1726139448105,-841.11,0.00016438,2]
[337827761,1726139448114,-265.71,0.00016438,2]
[337827762,1726139448124,-500.0,0.00016438,2]
[337827763,1726139448135,-500.0,0.00016438,2]
[337827764,1726139448145,-703.42,0.00016438,2]
[337827765,1726139448155,-500.0,0.00016438,2]
[337827766,1726139448165,-500.0,0.00016438,2]
[337827767,1726139448176,-762.15,0.00016438,2]
[337827768,1726139448188,-500.0,0.00016438,2]
[337827769,1726139448198,-709.84,0.00016438,2]
[337827770,1726139448207,-500.0,0.00016438,2]
[337827771,1726139448216,-500.0,0.00016438,2]
[337827772,1726139448227,-500.0,0.00016438,2]
[337827773,1726139448237,-500.0,0.00016438,2]
[337827774,1726139448247,-1128.33,0.00016438,2]
[337827775,1726139448256,-500.0,0.00016438,2]
[337827776,1726139448266,-500.0,0.00016438,2]
[337827777,1726139448277,-526.45,0.00016438,2]
[337827778,1726139448288,-612.57,0.00016438,2]
[337827779,1726139448298,-500.0,0.00016438,2]
[337827780,1726139448307,-500.0,0.00016438,2]
[337827781,1726139448318,-500.0,0.00016438,2]
[337827782,1726139448329,-500.0,0.00016438,2]
[337827783,1726139448339,-500.0,0.00016438,2]
[337827784,1726139448349,-500.0,0.00016438,2]
[337827785,1726139448358,-500.0,0.00016438,2]
[337827786,1726139448368,-500.0,0.00016438,2]
[337827787,1726139448378,-500.0,0.00016438,2]
[337827788,1726139448388,-405.59,0.00016438,2]
[337827789,1726139448399,-9224.59,0.00016438,2]
[337827790,1726139448410,-412.73206216,0.00016438,2]
[337827791,1726139448420,-500.0,0.00016438,2]
[337827792,1726139448429,-500.0,0.00016438,2]
[337827793,1726139448438,-500.0,0.00016438,2]
[337827794,1726139448448,-500.0,0.00016438,2]
[337827795,1726139448458,-500.0,0.00016438,2]
[337827796,1726139448467,-500.0,0.00016438,2]
[337827797,1726139448476,-500.0,0.00016438,2]
[337827798,1726139448486,-500.0,0.00016438,2]
[337827799,1726139448497,-1541.8,0.00016438,2]
[337827800,1726139448506,-500.0,0.00016438,2]
[337827801,1726139448515,-500.0,0.00016438,2]
[337827802,1726139448526,-500.0,0.00016438,2]
[337827803,1726139448537,-500.0,0.00016438,2]
[337827804,1726139448547,-888.06,0.00016438,2]
[337827805,1726139448557,-210.10429094,0.00016438,2]
[337827806,1726139448569,-500.0,0.00016438,2]
[337827807,1726139448579,-151.05,0.00016438,2]
[337827808,1726139448589,-500.0,0.00016438,2]
[337827809,1726139448598,-500.0,0.00016438,2]
[337827810,1726139448607,-500.0,0.00016438,2]
[337827811,1726139448618,-500.0,0.00016438,2]
[337827812,1726139448628,-994.97,0.00016438,2]
[337827813,1726139448637,-500.0,0.00016438,2]
[337827814,1726139448646,-500.0,0.00016438,2]
[337827815,1726139448655,-500.0,0.00016438,2]
[337827816,1726139448665,-500.0,0.00016438,2]
[337827817,1726139448674,-500.0,0.00016438,2]
[337827818,1726139448683,-573.19682479,0.00016438,2]
[337827819,1726139448694,-533.62,0.00016438,2]
[337827820,1726139448704,-791.4,0.00016438,2]
[337827821,1726139448713,-500.0,0.00016438,2]
[337827822,1726139448723,-500.0,0.00016438,2]
[337827823,1726139448750,-544.18867086,0.00016438,2]
[337827824,1726139448759,-500.0,0.00016438,2]
[337827825,1726139448768,-500.0,0.00016438,2]
[337827826,1726139448778,-574.29,0.00016438,2]
[337827827,1726139448788,-500.0,0.00016438,2]
[337827828,1726139448798,-791.48,0.00016438,2]
[337827829,1726139448807,-500.0,0.00016438,2]
[337827830,1726139448817,-500.0,0.00016438,2]
[337827831,1726139448827,-500.0,0.00016438,2]
[337827832,1726139448837,-500.0,0.00016438,2]
[337827833,1726139448846,-500.0,0.00016438,2]
[337827834,1726139448856,-500.0,0.00016438,2]
[337827835,1726139448866,-500.0,0.00016438,2]
[337827836,1726139448875,-500.0,0.00016438,2]
[337827837,1726139448885,-500.0,0.00016438,2]
[337827838,1726139448894,-534.74106036,0.00016438,2]
[337827839,1726139448905,-500.0,0.00016438,2]
[337827840,1726139448914,-806.32,0.00016438,2]
[337827841,1726139448924,-500.0,0.00016438,2]
[337827842,1726139448933,-629.55,0.00016438,2]
[337827843,1726139448942,-500.0,0.00016438,2]
[337827844,1726139448952,-624.05,0.00016438,2]
[337827845,1726139448961,-500.0,0.00016438,2]
[337827846,1726139448971,-500.0,0.00016438,2]
[337827847,1726139448980,-500.0,0.00016438,2]
[337827848,1726139448989,-500.0,0.00016438,2]
[337827849,1726139448999,-500.0,0.00016438,2]
[337827850,1726139449008,-500.0,0.00016438,2]
[337827851,1726139449018,-500.0,0.00016438,2]
[337827852,1726139449027,-500.0,0.00016438,2]
[337827853,1726139449038,-607.59,0.00016438,2]
[337827854,1726139449048,-500.0,0.00016438,2]
[337827855,1726139449058,-788.03,0.00016438,2]
[337827856,1726139449068,-500.0,0.00016438,2]
[337827857,1726139449079,-788.03,0.00016438,2]
[337827858,1726139449089,-788.03,0.00016438,2]
[337827859,1726139449100,-788.03,0.00016438,2]
[337827860,1726139449110,-788.03,0.00016438,2]
[337827861,1726139449122,-500.0,0.00016438,2]
[337827862,1726139449131,-788.03,0.00016438,2]
[337827863,1726139449141,-500.0,0.00016438,2]
[337827864,1726139449152,-788.03,0.00016438,2]
[337827865,1726139449161,-788.03,0.00016438,2]
[337827866,1726139449171,-788.03,0.00016438,2]
[337827867,1726139449180,-788.03,0.00016438,2]
[337827868,1726139449190,-788.03,0.00016438,2]
[337827869,1726139449199,-788.03,0.00016438,2]
[337827870,1726139449209,-788.03,0.00016438,2]
[337827871,1726139449218,-500.0,0.00016438,2]
[337827872,1726139449227,-788.03,0.00016438,2]
[337827873,1726139449237,-788.03,0.00016438,2]
[337827874,1726139449247,-788.03,0.00016438,2]
[337827875,1726139449256,-500.0,0.00016438,2]
[337827876,1726139449272,-386.68815292,0.00016438,2]
[337827879,1726139814388,1000.0,0.00028,120]
[337827880,1726139881494,1000.0,0.00028,120]
[337827881,1726139916865,500.0,0.00013699,2]
[337827882,1726139934070,701.39076518,0.00028,120]
[337827883,1726139935248,24900.0,0.00015402,2]
[337827884,1726139981961,500.0,0.000175,7]
[337827885,1726139982727,500.0,0.000175,7]
[337827886,1726139983481,500.0,0.000175,7]
[337827887,1726139984244,500.0,0.000175,7]
[337827888,1726139985526,500.0,0.000175,7]
[337827889,1726139985756,500.0,0.000175,7]
[337827890,1726139986496,500.0,0.000175,7]
[337827891,1726139987246,500.0,0.000175,7]
[337827892,1726139988048,500.0,0.000175,7]
[337827893,1726139988748,500.0,0.000175,7]
[337827894,1726139989505,500.0,0.000175,7]
[337827895,1726139990292,500.0,0.000175,7]
[337827896,1726139991048,500.0,0.000175,7]
[337827897,1726139991818,500.0,0.000175,7]
[337827898,1726139992583,587.48,0.000175,7]
[337827899,1726140005735,500.0,0.000175,7]
[337827900,1726140006602,500.0,0.000175,7]
[337827901,1726140007276,500.0,0.000175,7]
[337827902,1726140008056,500.0,0.000175,7]
[337827903,1726140008821,500.0,0.000175,7]
[337827904,1726140009859,500.0,0.000175,7]
[337827905,1726140010644,500.0,0.000175,7]
[337827906,1726140011404,500.0,0.000175,7]
[337827907,1726140012162,410.87,0.000175,7]
[337827911,1726140346163,-967.68465413,0.00016103,2]
[337827914,1726140420577,500.0,0.0001529,2]
[337827915,1726140429108,-570.86352947,0.00016197,2]
[337827916,1726140435112,-2699.84304484,0.00016197,2]
[337827917,1726140436452,500.0,0.00013699,2]
[337827918,1726140465311,500.0,0.000157,2]
[337827919,1726140486442,200.0,0.00016,2]
[337827920,1726140489049,24900.0,0.00015388,2]
[337827922,1726140514254,200.0,0.00016,2]
[337827924,1726140549157,-1932.3738,0.00016203,2]
[337827925,1726140553100,-17.6462,0.00016203,2]
[337827926,1726140569114,200.0,0.00016203,2]
[337827929,1726140621058,620.25447583,0.00016072,2]
[337827969,1726140632780,-2737.28170103,0.00016328,2]
[337827971,1726140632791,-1544.25674601,0.00016338,2]
[337827973,1726140632801,-1000.0,0.00016338,2]
[337827975,1726140632811,-244.0464,0.00016356,2]
[337827977,1726140632820,-300.0,0.00016399,2]
[337827979,1726140632831,-150.112233,0.000164,2]
[337827981,1726140632841,-150.112233,0.000164,2]
[337827983,1726140632850,-150.112233,0.000164,2]
[337827985,1726140632861,-150.112233,0.000164,2]
[337827987,1726140632871,-150.112233,0.000164,2]
[337827989,1726140632880,-150.112233,0.000164,2]
[337827990,1726140632890,-150.112233,0.000164,2]
[337827991,1726140632899,-150.112233,0.000164,2]
[337827992,1726140632909,-150.112233,0.000164,2]
[337827993,1726140632919,-150.112233,0.000164,2]
[337827994,1726140632928,-4593.854486,0.000164,2]
[337827995,1726140632938,-187.06681994,0.00016427,2]
[337827996,1726140632947,-500.0,0.00016427,2]
[337827997,1726140632957,-500.0,0.00016427,2]
[337827998,1726140632968,-164.79520789,0.00016427,2]
[337827999,1726140632979,-347.91088171,0.00016427,2]
[337828001,1726140632989,-310.76782347,0.00016428,2]
[337828002,1726140632998,-79.90304859,0.00016428,2]
[337828032,1726140638836,-26981.84363577,0.00016428,2]
[337828064,1726140640642,-26055.46145433,0.00016428,2]
[337828387,1726140644038,-113086.14530131,0.00016428,2]
[337828389,1726140644050,-414.35709796,0.00016428,2]
[337828391,1726140644062,-83101.6767202,0.00016428,2]
[337828393,1726140644073,-150.01,0.00016437,2]
[337828395,1726140644082,-2540.81005021,0.00016437,2]
[337828397,1726140644092,-32056.96922382,0.00016438,3]
[337828399,1726140644101,-500.0,0.00016438,2]
[337828401,1726140644111,-500.0,0.00016438,2]
[337828402,1726140644120,-500.0,0.00016438,2]
[337828404,1726140644129,-500.0,0.00016438,2]
[337828406,1726140644138,-500.0,0.00016438,2]
[337828408,1726140644148,-500.0,0.00016438,2]
[337828410,1726140644158,-506.8767011,0.00016438,2]
[337828412,1726140644168,-500.0,0.00016438,2]
[337828414,1726140644178,-500.0,0.00016438,2]
[337828416,1726140644189,-500.0,0.00016438,2]
[337828419,1726140644203,-500.0,0.00016438,2]
[337828421,1726140644215,-500.0,0.00016438,2]
[337828423,1726140644225,-500.0,0.00016438,2]
[337828425,1726140644235,-500.0,0.00016438,2]
[337828427,1726140644244,-500.90914336,0.00016438,2]
[337828429,1726140644254,-500.0,0.00016438,2]
[337828431,1726140644266,-503.5461941,0.00016438,2]
[337828433,1726140644276,-500.0,0.00016438,2]
[337828436,1726140644286,-500.0,0.00016438,2]
[337828437,1726140644295,-232.28664313,0.00016438,2]
[337828440,1726140644307,-500.0,0.00016438,2]
[337828442,1726140644316,-500.0,0.00016438,2]
[337828444,1726140644326,-500.0,0.00016438,2]
[337828446,1726140644335,-500.0,0.00016438,2]
[337828448,1726140644345,-508.8295679,0.00016438,2]
[337828450,1726140644357,-500.0,0.00016438,2]
[337828452,1726140644367,-500.0,0.00016438,2]
[337828454,1726140644377,-500.0,0.00016438,2]
[337828456,1726140644386,-500.0,0.00016438,2]
[337828458,1726140644398,-500.0,0.00016438,2]
[337828460,1726140644408,-500.0,0.00016438,2]
[337828462,1726140644419,-500.0,0.00016438,2]
[337828464,1726140644428,-500.0,0.00016438,2]
[337828466,1726140644438,-500.0,0.00016438,2]
[337828468,1726140644448,-500.0,0.00016438,2]
[337828470,1726140644458,-500.0,0.00016438,2]
[337828472,1726140644468,-500.0,0.00016438,2]
[337828474,1726140644478,-500.0,0.00016438,2]
[337828476,1726140644489,-500.0,0.00016438,2]
[337828478,1726140644500,-500.0,0.00016438,2]
[337828480,1726140644509,-500.0,0.00016438,2]
[337828482,1726140644520,-687.71,0.00016438,2]
[337828484,1726140644530,-500.0,0.00016438,2]
[337828487,1726140644543,-500.0,0.00016438,2]
[337828489,1726140644554,-500.0,0.00016438,2]
[337828491,1726140644563,-501.54398973,0.00016438,2]
[337828493,1726140644573,-500.0,0.00016438,2]
[337828495,1726140644583,-502.80020864,0.00016438,2]
[337828497,1726140644593,-510.32209435,0.00016438,2]
[337828499,1726140644603,-500.0,0.00016438,2]
[337828501,1726140644614,-500.0,0.00016438,2]
[337828503,1726140644624,-508.74914707,0.00016438,2]
[337828505,1726140644635,-500.0,0.00016438,2]
[337828507,1726140644646,-500.0,0.00016438,2]
[337828509,1726140644657,-500.0,0.00016438,2]
[337828511,1726140644667,-500.0,0.00016438,2]
[337828513,1726140644679,-500.0,0.00016438,2]
[337828515,1726140644690,-500.0,0.00016438,2]
[337828517,1726140644701,-500.0,0.00016438,2]
[337828519,1726140644712,-393.57278461,0.00016438,2]
[337828521,1726140644722,-500.0,0.00016438,2]
[337828523,1726140644732,-441.3783437,0.00016438,2]
[337828525,1726140644741,-500.0,0.00016438,2]
[337828527,1726140644750,-298.18193301,0.00016438,2]
[337828529,1726140644760,-500.0,0.00016438,2]
[337828531,1726140644770,-500.0,0.00016438,2]
[337828533,1726140644780,-500.0,0.00016438,2]
[337828535,1726140644789,-291.43371116,0.00016438,2]
[337828537,1726140644799,-500.0,0.00016438,2]
[337828539,1726140644808,-500.0,0.00016438,2]
[337828540,1726140644817,-514.81317211,0.00016438,2]
[337828543,1726140644828,-500.0,0.00016438,2]
[337828545,1726140644837,-500.0,0.00016438,2]
[337828547,1726140644847,-500.0,0.00016438,2]
[337828549,1726140644857,-500.0,0.00016438,2]
[337828551,1726140644867,-256.69592048,0.00016438,2]
[337828553,1726140644878,-500.0,0.00016438,2]
[337828555,1726140644888,-170.53035797,0.00016438,2]
[337828557,1726140644897,-500.0,0.00016438,2]
[337828559,1726140644907,-500.0,0.00016438,2]
[337828561,1726140644916,-500.0,0.00016438,2]
[337828563,1726140644926,-500.0,0.00016438,2]
[337828565,1726140644936,-500.0,0.00016438,2]
[337828567,1726140644946,-500.0,0.00016438,2]
[337828569,1726140644956,-500.0,0.00016438,2]
[337828571,1726140644966,-500.0,0.00016438,2]
[337828573,1726140644978,-500.0,0.00016438,2]
[337828575,1726140644988,-518.56628907,0.00016438,2]
[337828577,1726140644998,-500.0,0.00016438,2]
[337828579,1726140645008,-500.0,0.00016438,2]
[337828581,1726140645019,-509.61319523,0.00016438,2]
[337828583,1726140645028,-500.0,0.00016438,2]
[337828585,1726140645038,-500.0,0.00016438,2]
[337828587,1726140645049,-500.0,0.00016438,2]
[337828589,1726140645058,-500.0,0.00016438,2]
[337828591,1726140645068,-500.0,0.00016438,2]
[337828593,1726140645077,-500.0,0.00016438,2]
[337828595,1726140645087,-500.0,0.00016438,2]
[337828597,1726140645096,-500.0,0.00016438,2]
[337828599,1726140645105,-500.0,0.00016438,2]
[337828601,1726140645114,-500.0,0.00016438,2]
[337828603,1726140645123,-500.0,0.00016438,2]
[337828605,1726140645133,-500.0,0.00016438,2]
[337828607,1726140645143,-500.0,0.00016438,2]
[337828609,1726140645153,-500.0,0.00016438,2]
[337828611,1726140645162,-503.87599347,0.00016438,2]
[337828613,1726140645172,-500.0,0.00016438,2]
[337828615,1726140645182,-321.09284168,0.00016438,2]
[337828617,1726140645191,-500.0,0.00016438,2]
[337828619,1726140645201,-500.0,0.00016438,2]
[337828621,1726140645211,-594.52131476,0.00016438,2]
[337828623,1726140645220,-500.0,0.00016438,2]
[337828625,1726140645230,-500.70327311,0.00016438,2]
[337828627,1726140645240,-500.0,0.00016438,2]
[337828629,1726140645250,-500.0,0.00016438,2]
[337828631,1726140645260,-500.0,0.00016438,2]
[337828633,1726140645269,-873.73,0.00016438,2]
[337828635,1726140645280,-617.5855879,0.00016438,2]
[337828637,1726140645290,-500.0,0.00016438,2]
[337828639,1726140645300,-500.0,0.00016438,2]
[337828641,1726140645310,-504.9474406,0.00016438,2]
[337828643,1726140645319,-500.0,0.00016438,2]
[337828645,1726140645328,-523.72515869,0.00016438,2]
[337828647,1726140645338,-500.0,0.00016438,2]
[337828649,1726140645347,-500.0,0.00016438,2]
[337828651,1726140645356,-500.0,0.00016438,2]
[337828653,1726140645366,-500.0,0.00016438,2]
[337828655,1726140645377,-500.0,0.00016438,2]
[337828657,1726140645387,-500.0,0.00016438,2]
[337828659,1726140645397,-501.58509281,0.00016438,2]
[337828661,1726140645407,-500.0,0.00016438,2]
[337828663,1726140645417,-615.45233055,0.00016438,2]
[337828665,1726140645426,-500.0,0.00016438,2]
[337828667,1726140645437,-500.0,0.00016438,2]
[337828670,1726140645447,-463.75037557,0.00016438,2]
[337828673,1726140645467,-36.24962443,0.00016438,2]
[337828675,1726140645476,-500.0,0.00016438,2]
[337828677,1726140645487,-500.0,0.00016438,2]
[337828679,1726140645496,-500.0,0.00016438,2]
[337828681,1726140645506,-500.0,0.00016438,2]
[337828683,1726140645516,-151.0,0.00016438,2]
[337828685,1726140645526,-151.0,0.00016438,2]
[337828687,1726140645535,-151.0,0.00016438,2]
[337828689,1726140645545,-151.0,0.00016438,2]
[337828691,1726140645554,-155.029161,0.00016438,2]
[337828693,1726140645564,-500.0,0.00016438,2]
[337828695,1726140645574,-518.71610725,0.00016438,2]
[337828697,1726140645584,-500.0,0.00016438,2]
[337828699,1726140645594,-534.42230829,0.00016438,2]
[337828701,1726140645604,-500.0,0.00016438,2]
[337828703,1726140645613,-500.0,0.00016438,2]
[337828705,1726140645623,-500.0,0.00016438,2]
[337828707,1726140645633,-500.0,0.00016438,2]
[337828709,1726140645642,-500.0,0.00016438,2]
[337828711,1726140645652,-500.0,0.00016438,2]
[337828713,1726140645662,-500.0,0.00016438,2]
[337828715,1726140645672,-500.0,0.00016438,2]
[337828717,1726140645681,-632.02,0.00016438,2]
[337828719,1726140645691,-500.0,0.00016438,2]
[337828721,1726140645700,-573.34,0.00016438,2]
[337828723,1726140645710,-500.0,0.00016438,2]
[337828725,1726140645720,-350.4651043,0.00016438,2]
[337828727,1726140645729,-500.0,0.00016438,2]
[337828729,1726140645739,-500.0,0.00016438,2]
[337828731,1726140645748,-500.0,0.00016438,2]
[337828733,1726140645757,-1205.34,0.00016438,2]
[337828735,1726140645766,-500.0,0.00016438,2]
[337828737,1726140645775,-500.0,0.00016438,2]
[337828739,1726140645785,-500.0,0.00016438,2]
[337828741,1726140645795,-500.0,0.00016438,2]
[337828743,1726140645805,-500.0,0.00016438,2]
[337828745,1726140645815,-500.0,0.00016438,2]
[337828747,1726140645824,-202.27785251,0.00016438,2]
[337828749,1726140645833,-500.0,0.00016438,2]
[337828751,1726140645843,-584.21,0.00016438,2]
[337828753,1726140645853,-1026.82,0.00016438,2]
[337828755,1726140645862,-500.0,0.00016438,2]
[337828757,1726140645872,-500.0,0.00016438,2]
[337828759,1726140645882,-500.0,0.00016438,2]
[337828761,1726140645892,-393.71417716,0.00016438,2]
[337828764,1726140645903,-500.0,0.00016438,2]
[337828766,1726140645912,-500.0,0.00016438,2]
[337828768,1726140645922,-500.0,0.00016438,2]
[337828769,1726140645932,-500.0,0.00016438,2]
[337828772,1726140645941,-500.0,0.00016438,2]
[337828774,1726140645951,-1577.93,0.00016438,2]
[337828776,1726140645962,-500.0,0.00016438,2]
[337828778,1726140645973,-500.0,0.00016438,2]
[337828780,1726140645984,-500.0,0.00016438,2]
[337828782,1726140645995,-500.0,0.00016438,2]
[337828784,1726140646004,-500.0,0.00016438,2]
[337828785,1726140646014,-500.0,0.00016438,2]
[337828787,1726140646024,-500.0,0.00016438,2]
[337828789,1726140646033,-617.69,0.00016438,2]
[337828791,1726140646044,-500.0,0.00016438,2]
[337828793,1726140646054,-415.26761324,0.00016438,2]
[337828795,1726140646064,-500.0,0.00016438,2]
[337828797,1726140646074,-518.51000873,0.00016438,2]
[337828799,1726140646083,-503.82524376,0.00016438,2]
[337828801,1726140646093,-500.0,0.00016438,2]
[337828803,1726140646103,-500.0,0.00016438,2]
[337828805,1726140646113,-613.36,0.00016438,2]
[337828807,1726140646123,-572.50428295,0.00016438,2]
[337828809,1726140646132,-809.18970214,0.00016438,2]
[337831703,1726140683251,170.56279,0.00015569,2]
[337831731,1726140912220,11669.00783051,0.00018,5]
[337831732,1726140953567,500.0,0.00013699,2]
[337831733,1726141061655,10000.0,0.00016003,2]
[337831734,1726141073763,10000.0,0.00016003,2]
[337831735,1726141081661,10000.0,0.00016003,2]
[337831736,1726141090223,10000.0,0.00016003,2]
[337831737,1726141092375,24900.0,0.000154,2]